[Event "Titled Tuesday Blitz October 31 Early 2023"]
[White "Kahlert, Thomas"]
[Black "Feliz Dotel, Dewar Bienvenido"]
[WhiteFideId "4625242"]
[BlackFideId "6402801"]
[WhiteElo "2376"]
[BlackElo "2153"]
[Result "1-0"]
[Round "9"]
[TimeControl "180+1"]
[Date "2023.10.31"]
[WhiteClock "0:00:20"]
[BlackClock "0:00:04"]
[Board "118"]

1. c4 {[%clk 0:02:58]}  Nf6 {[%clk 0:02:59]} 2. Nc3 {[%clk 0:02:58]}  e6 {[%clk 0:03:00]} 3. e4 {[%clk 0:02:57]}  d5 {[%clk 0:03:00]} 4. e5 {[%clk 0:02:57]}  Ne4 {[%clk 0:03:00]} 5. Nf3 {[%clk 0:02:56]}  Nxc3 {[%clk 0:02:55]} 6. dxc3 {[%clk 0:02:56]}  c6 {[%clk 0:02:51]} 7. Bf4 {[%clk 0:02:55]}  Be7 {[%clk 0:02:49]} 8. Qc2 {[%clk 0:02:55]}  O-O {[%clk 0:02:40]} 9. O-O-O {[%clk 0:02:53]}  Qa5 {[%clk 0:02:36]} 10. Kb1 {[%clk 0:02:52]}  Nd7 {[%clk 0:02:32]} 11. Bd3 {[%clk 0:02:51]}  h6 {[%clk 0:02:30]} 12. Rhe1 {[%clk 0:02:31]}  dxc4 {[%clk 0:02:27]} 13. Bxc4 {[%clk 0:02:31]}  Nb6 {[%clk 0:02:19]} 14. Bd3 {[%clk 0:02:24]}  Nd5 {[%clk 0:02:17]} 15. Bc1 {[%clk 0:02:24]}  b5 {[%clk 0:02:16]} 16. Qe2 {[%clk 0:02:24]}  b4 {[%clk 0:02:12]} 17. Qe4 {[%clk 0:02:23]}  f5 {[%clk 0:02:07]} 18. exf6 {[%clk 0:02:22]}  Nxf6 {[%clk 0:02:07]} 19. Qxc6 {[%clk 0:02:16]}  bxc3 {[%clk 0:02:04]} 20. Qxc3 {[%clk 0:02:15]}  Qxc3 {[%clk 0:02:01]} 21. bxc3 {[%clk 0:02:14]}  Rb8+ {[%clk 0:02:00]} 22. Kc2 {[%clk 0:02:14]}  Nd5 {[%clk 0:01:57]} 23. Bc4 {[%clk 0:02:10]}  Bf6 {[%clk 0:01:50]} 24. Nd4 {[%clk 0:01:55]}  Bxd4 {[%clk 0:01:41]} 25. Rxd4 {[%clk 0:01:54]}  Rxf2+ {[%clk 0:01:41]} 26. Re2 {[%clk 0:01:55]}  Rxe2+ {[%clk 0:01:41]} 27. Bxe2 {[%clk 0:01:55]}  Bd7 {[%clk 0:01:35]} 28. Bc4 {[%clk 0:01:50]}  Rf8 {[%clk 0:01:28]} 29. Re4 {[%clk 0:01:45]}  Rf2+ {[%clk 0:01:23]} 30. Re2 {[%clk 0:01:45]}  Rxe2+ {[%clk 0:01:23]} 31. Bxe2 {[%clk 0:01:45]}  e5 {[%clk 0:01:19]} 32. c4 {[%clk 0:01:43]}  Nf6 {[%clk 0:01:16]} 33. Bb2 {[%clk 0:01:39]}  Bc6 {[%clk 0:01:07]} 34. g3 {[%clk 0:01:35]}  Nd7 {[%clk 0:01:07]} 35. Kc3 {[%clk 0:01:32]}  Kf7 {[%clk 0:01:06]} 36. Kb4 {[%clk 0:01:32]}  Kf6 {[%clk 0:01:05]} 37. Bc1 {[%clk 0:01:31]}  g5 {[%clk 0:01:00]} 38. Ka5 {[%clk 0:01:28]}  Be4 {[%clk 0:00:57]} 39. Be3 {[%clk 0:01:27]}  Bb1 {[%clk 0:00:53]} 40. a3 {[%clk 0:01:26]}  e4 {[%clk 0:00:40]} 41. Bxa7 {[%clk 0:01:19]}  Bd3 {[%clk 0:00:39]} 42. Bxd3 {[%clk 0:01:18]}  exd3 {[%clk 0:00:40]} 43. Be3 {[%clk 0:01:16]}  Nc5 {[%clk 0:00:39]} 44. Kb6 {[%clk 0:01:10]}  Ne4 {[%clk 0:00:31]} 45. c5 {[%clk 0:01:10]}  Ke6 {[%clk 0:00:26]} 46. c6 {[%clk 0:01:08]}  Nd6 {[%clk 0:00:26]} 47. Kc5 {[%clk 0:00:58]}  Nf5 {[%clk 0:00:24]} 48. Bd2 {[%clk 0:00:56]}  Ne7 {[%clk 0:00:24]} 49. a4 {[%clk 0:00:54]}  Nc8 {[%clk 0:00:22]} 50. a5 {[%clk 0:00:54]}  Ke7 {[%clk 0:00:20]} 51. Kc4 {[%clk 0:00:47]}  Kd6 {[%clk 0:00:20]} 52. Kxd3 {[%clk 0:00:47]}  Kxc6 {[%clk 0:00:20]} 53. Ke4 {[%clk 0:00:48]}  Nd6+ {[%clk 0:00:18]} 54. Kd4 {[%clk 0:00:43]}  Nf5+ {[%clk 0:00:18]} 55. Ke5 {[%clk 0:00:42]}  Ne7 {[%clk 0:00:16]} 56. Kf6 {[%clk 0:00:42]}  Nd5+ {[%clk 0:00:15]} 57. Kg6 {[%clk 0:00:41]}  Ne7+ {[%clk 0:00:12]} 58. Kxh6 {[%clk 0:00:41]}  g4 {[%clk 0:00:11]} 59. Kg5 {[%clk 0:00:40]}  Nc8 {[%clk 0:00:09]} 60. Kxg4 {[%clk 0:00:40]}  Nd6 {[%clk 0:00:10]} 61. h4 {[%clk 0:00:38]}  Kb5 {[%clk 0:00:09]} 62. h5 {[%clk 0:00:38]}  Ne4 {[%clk 0:00:09]} 63. Be1 {[%clk 0:00:36]}  Nf6+ {[%clk 0:00:08]} 64. Kg5 {[%clk 0:00:35]}  Ne4+ {[%clk 0:00:08]} 65. Kg6 {[%clk 0:00:35]}  Nc5 {[%clk 0:00:06]} 66. h6 {[%clk 0:00:35]}  Nd3 {[%clk 0:00:07]} 67. Bd2 {[%clk 0:00:35]}  Ne5+ {[%clk 0:00:07]} 68. Kg7 {[%clk 0:00:35]}  Nc4 {[%clk 0:00:04]} 69. Be1 {[%clk 0:00:34]}  Nd6 {[%clk 0:00:03]} 70. h7 {[%clk 0:00:33]}  Nf5+ {[%clk 0:00:03]} 71. Kf6 {[%clk 0:00:33]}  Nh6 {[%clk 0:00:01]} 72. h8=Q {[%clk 0:00:31]}  Ng4+ {[%clk 0:00:02]} 73. Kg5 {[%clk 0:00:30]}  Ne3 {[%clk 0:00:03]} 74. Qe8+ {[%clk 0:00:27]}  Ka6 {[%clk 0:00:03]} 75. Qxe3 {[%clk 0:00:26]}  Kb7 {[%clk 0:00:04]} 76. Qb6+ {[%clk 0:00:26]}  Ka8 {[%clk 0:00:04]} 77. Qe6 {[%clk 0:00:22]}  Kb7 {[%clk 0:00:04]} 78. Bf2 {[%clk 0:00:20]}  Ka8 {[%clk 0:00:04]} 79. Qd7 {[%clk 0:00:19]}  Kb8 {[%clk 0:00:04]} 80. a6 {[%clk 0:00:20]}  Ka8 {[%clk 0:00:04]} 81. Qb7# {[%clk 0:00:20]} 1-0


[Site "https://www.chess.com"]

[Event "Titled Tuesday Blitz October 31 Early 2023"]
[White "Josgar05"]
[Black "DonCiao"]
[WhiteElo "2341"]
[BlackElo "2142"]
[Result "0-1"]
[Round "9"]
[TimeControl "180+1"]
[Date "2023.10.31"]
[WhiteClock "0:02:05"]
[BlackClock "0:00:55"]
[Board "119"]

1. Nf3 {[%clk 0:03:00]}  Nf6 {[%clk 0:02:59]} 2. g3 {[%clk 0:03:01]}  g6 {[%clk 0:02:59]} 3. Bg2 {[%clk 0:03:02]}  Bg7 {[%clk 0:02:59]} 4. O-O {[%clk 0:03:03]}  d5 {[%clk 0:02:59]} 5. d3 {[%clk 0:03:02]}  O-O {[%clk 0:02:58]} 6. Nbd2 {[%clk 0:03:02]}  Nc6 {[%clk 0:02:55]} 7. e4 {[%clk 0:03:03]}  e5 {[%clk 0:02:55]} 8. Re1 {[%clk 0:03:02]}  d4 {[%clk 0:02:50]} 9. h3 {[%clk 0:03:00]}  Nd7 {[%clk 0:02:39]} 10. c3 {[%clk 0:02:57]}  Nc5 {[%clk 0:02:19]} 11. cxd4 {[%clk 0:02:49]}  Nxd3 {[%clk 0:02:10]} 12. d5 {[%clk 0:02:41]}  Nxe1 {[%clk 0:02:09]} 13. Qxe1 {[%clk 0:02:41]}  Nd4 {[%clk 0:02:09]} 14. Nc4 {[%clk 0:02:39]}  Nc2 {[%clk 0:02:07]} 15. Qd1 {[%clk 0:02:35]}  Nxa1 {[%clk 0:02:07]} 16. Bg5 {[%clk 0:02:36]}  f6 {[%clk 0:02:05]} 17. Be3 {[%clk 0:02:36]}  c6 {[%clk 0:01:56]} 18. d6 {[%clk 0:02:35]}  Be6 {[%clk 0:01:55]} 19. b3 {[%clk 0:02:35]}  Nxb3 {[%clk 0:01:48]} 20. axb3 {[%clk 0:02:35]}  b5 {[%clk 0:01:43]} 21. Nb2 {[%clk 0:02:29]}  a5 {[%clk 0:01:39]} 22. Bc5 {[%clk 0:02:27]}  a4 {[%clk 0:01:31]} 23. bxa4 {[%clk 0:02:21]}  bxa4 {[%clk 0:01:31]} 24. Nxa4 {[%clk 0:02:21]}  Qa5 {[%clk 0:01:31]} 25. Nb6 {[%clk 0:02:19]}  Qxc5 {[%clk 0:01:27]} 26. Nxa8 {[%clk 0:02:18]}  Rxa8 {[%clk 0:01:26]} 27. Qd2 {[%clk 0:02:17]}  Rd8 {[%clk 0:01:23]} 28. Bf1 {[%clk 0:02:13]}  Rxd6 {[%clk 0:01:22]} 29. Qb2 {[%clk 0:02:13]}  Rd8 {[%clk 0:01:19]} 30. Qb7 {[%clk 0:02:13]}  Rd1 {[%clk 0:01:09]} 31. Qa8+ {[%clk 0:02:06]}  Bf8 {[%clk 0:01:07]} 32. Qe8 {[%clk 0:02:05]}  Bc4 {[%clk 0:01:03]} 33. Nh4 {[%clk 0:02:04]}  Rxf1+ {[%clk 0:00:57]} 34. Kh2 {[%clk 0:02:04]}  Qxf2+ {[%clk 0:00:57]} 35. Ng2 {[%clk 0:02:05]}  Qg1# {[%clk 0:00:55]} 0-1


[Site "https://www.chess.com"]

[Event "Titled Tuesday Blitz October 31 Early 2023"]
[White "Tarnowska, Aleksandra"]
[Black "Harriott, Tyrell"]
[WhiteFideId "1180967"]
[BlackFideId "2086484"]
[WhiteElo "2163"]
[BlackElo "2309"]
[Result "0-1"]
[Round "9"]
[TimeControl "180+1"]
[Date "2023.10.31"]
[WhiteClock "0:00:05"]
[BlackClock "0:00:22"]
[Board "120"]

1. e4 {[%clk 0:02:55]}  d5 {[%clk 0:02:56]} 2. exd5 {[%clk 0:02:47]}  Nf6 {[%clk 0:02:53]} 3. d4 {[%clk 0:02:47]}  Qxd5 {[%clk 0:02:52]} 4. Nc3 {[%clk 0:02:42]}  Qa5 {[%clk 0:02:50]} 5. Nf3 {[%clk 0:02:39]}  Bg4 {[%clk 0:02:32]} 6. h3 {[%clk 0:02:32]}  Bh5 {[%clk 0:02:29]} 7. g4 {[%clk 0:02:32]}  Bg6 {[%clk 0:02:27]} 8. Bg2 {[%clk 0:02:32]}  Ne4 {[%clk 0:02:24]} 9. O-O {[%clk 0:02:04]}  Nxc3 {[%clk 0:02:18]} 10. bxc3 {[%clk 0:02:05]}  c6 {[%clk 0:02:16]} 11. c4 {[%clk 0:02:01]}  e6 {[%clk 0:02:16]} 12. Bf4 {[%clk 0:01:59]}  Nd7 {[%clk 0:02:12]} 13. Nh4 {[%clk 0:01:42]}  Be7 {[%clk 0:02:00]} 14. Nxg6 {[%clk 0:01:39]}  hxg6 {[%clk 0:01:58]} 15. d5 {[%clk 0:01:38]}  cxd5 {[%clk 0:01:47]} 16. cxd5 {[%clk 0:01:37]}  e5 {[%clk 0:01:38]} 17. Bg3 {[%clk 0:01:28]}  Bd6 {[%clk 0:01:29]} 18. c4 {[%clk 0:01:23]}  Qc5 {[%clk 0:01:24]} 19. Qb3 {[%clk 0:01:20]}  b6 {[%clk 0:01:22]} 20. Rae1 {[%clk 0:01:17]}  O-O {[%clk 0:01:18]} 21. Kh1 {[%clk 0:01:12]}  f5 {[%clk 0:01:15]} 22. gxf5 {[%clk 0:00:52]}  gxf5 {[%clk 0:01:14]} 23. f4 {[%clk 0:00:51]}  e4 {[%clk 0:01:14]} 24. Bf2 {[%clk 0:00:51]}  Qc7 {[%clk 0:01:10]} 25. Be3 {[%clk 0:00:49]}  Nc5 {[%clk 0:01:10]} 26. Qc3 {[%clk 0:00:46]}  Nd3 {[%clk 0:01:08]} 27. Re2 {[%clk 0:00:41]}  Bxf4 {[%clk 0:01:04]} 28. Bxf4 {[%clk 0:00:35]}  Nxf4 {[%clk 0:01:04]} 29. Ref2 {[%clk 0:00:33]}  Nxg2 {[%clk 0:00:55]} 30. Rxg2 {[%clk 0:00:33]}  f4 {[%clk 0:00:47]} 31. Qd4 {[%clk 0:00:24]}  Rae8 {[%clk 0:00:45]} 32. d6 {[%clk 0:00:24]}  Qd7 {[%clk 0:00:45]} 33. Rfg1 {[%clk 0:00:23]}  Rf7 {[%clk 0:00:44]} 34. Qd5 {[%clk 0:00:23]}  Re6 {[%clk 0:00:32]} 35. Qa8+ {[%clk 0:00:19]}  Kh7 {[%clk 0:00:31]} 36. Qd5 {[%clk 0:00:17]}  Rh6 {[%clk 0:00:27]} 37. Rh2 {[%clk 0:00:08]}  e3 {[%clk 0:00:24]} 38. Qe4+ {[%clk 0:00:08]}  Kh8 {[%clk 0:00:23]} 39. Qa8+ {[%clk 0:00:09]}  Kh7 {[%clk 0:00:22]} 40. Qe4+ {[%clk 0:00:09]}  g6 {[%clk 0:00:22]} 41. Qf3 {[%clk 0:00:04]}  Qxd6 {[%clk 0:00:21]} 42. Rg4 {[%clk 0:00:03]}  Qe6 {[%clk 0:00:20]} 43. Rhg2 {[%clk 0:00:03]}  e2 {[%clk 0:00:20]} 44. Rxe2 {[%clk 0:00:03]}  Qf5 {[%clk 0:00:19]} 45. Kg2 {[%clk 0:00:03]}  Rh5 {[%clk 0:00:19]} 46. Qc3 {[%clk 0:00:02]}  Rg5 {[%clk 0:00:19]} 47. Rxg5 {[%clk 0:00:02]}  Qxg5+ {[%clk 0:00:19]} 48. Kf1 {[%clk 0:00:03]}  f3 {[%clk 0:00:19]} 49. Rf2 {[%clk 0:00:03]}  Qg3 {[%clk 0:00:19]} 50. Ke1 {[%clk 0:00:04]}  Re7+ {[%clk 0:00:19]} 51. Kf1 {[%clk 0:00:03]}  Qxh3+ {[%clk 0:00:19]} 52. Kg1 {[%clk 0:00:03]}  Re6 {[%clk 0:00:19]} 53. Qxf3 {[%clk 0:00:03]}  Qxf3 {[%clk 0:00:19]} 54. Rxf3 {[%clk 0:00:04]}  Re4 {[%clk 0:00:19]} 55. Rc3 {[%clk 0:00:04]}  Re5 {[%clk 0:00:19]} 56. a3 {[%clk 0:00:02]}  Rf5 {[%clk 0:00:19]} 57. Kg2 {[%clk 0:00:02]}  Kg7 {[%clk 0:00:19]} 58. Kg3 {[%clk 0:00:03]}  Kf6 {[%clk 0:00:19]} 59. Kg4 {[%clk 0:00:03]}  g5 {[%clk 0:00:19]} 60. Rd3 {[%clk 0:00:03]}  Rf4+ {[%clk 0:00:20]} 61. Kh5 {[%clk 0:00:03]}  Rxc4 {[%clk 0:00:20]} 62. Rd6+ {[%clk 0:00:03]}  Kf5 {[%clk 0:00:20]} 63. Rd5+ {[%clk 0:00:04]}  Kf6 {[%clk 0:00:20]} 64. Rd6+ {[%clk 0:00:03]}  Ke5 {[%clk 0:00:20]} 65. Rd7 {[%clk 0:00:04]}  g4 {[%clk 0:00:19]} 66. Re7+ {[%clk 0:00:02]}  Kd6 {[%clk 0:00:19]} 67. Rxa7 {[%clk 0:00:03]}  Kc6 {[%clk 0:00:19]} 68. Rg7 {[%clk 0:00:03]}  Kb5 {[%clk 0:00:19]} 69. Rxg4 {[%clk 0:00:03]}  Rxg4 {[%clk 0:00:19]} 70. Kxg4 {[%clk 0:00:04]}  Ka4 {[%clk 0:00:18]} 71. Kf3 {[%clk 0:00:04]}  Kxa3 {[%clk 0:00:19]} 72. Ke2 {[%clk 0:00:05]}  b5 {[%clk 0:00:19]} 73. Kd1 {[%clk 0:00:05]}  Ka2 {[%clk 0:00:20]} 74. Kc2 {[%clk 0:00:05]}  b4 {[%clk 0:00:20]} 75. Kd3 {[%clk 0:00:05]}  b3 {[%clk 0:00:21]} 76. Kc4 {[%clk 0:00:05]}  b2 {[%clk 0:00:22]} 0-1


[Site "https://www.chess.com"]

[Event "Titled Tuesday Blitz October 31 Early 2023"]
[White "Iskusnyh, Sergei"]
[Black "parintele_chess"]
[WhiteFideId "4120027"]
[WhiteElo "2545"]
[BlackElo "2243"]
[Result "0-1"]
[Round "9"]
[TimeControl "180+1"]
[Date "2023.10.31"]
[WhiteClock "0:00:00"]
[BlackClock "0:00:04"]
[Board "124"]

1. Nf3 {[%clk 0:00:13]}  Nf6 {[%clk 0:02:57]} 2. e3 {[%clk 0:00:14]}  d5 {[%clk 0:02:55]} 3. Be2 {[%clk 0:00:15]}  g6 {[%clk 0:02:53]} 4. O-O {[%clk 0:00:15]}  Bg7 {[%clk 0:02:53]} 5. b3 {[%clk 0:00:16]}  O-O {[%clk 0:02:53]} 6. Bb2 {[%clk 0:00:17]}  c5 {[%clk 0:02:52]} 7. d4 {[%clk 0:00:18]}  Nc6 {[%clk 0:02:53]} 8. c4 {[%clk 0:00:19]}  cxd4 {[%clk 0:02:51]} 9. exd4 {[%clk 0:00:20]}  Bg4 {[%clk 0:02:49]} 10. h3 {[%clk 0:00:19]}  Bf5 {[%clk 0:02:45]} 11. Nbd2 {[%clk 0:00:18]}  Ne4 {[%clk 0:02:40]} 12. c5 {[%clk 0:00:17]}  b6 {[%clk 0:02:33]} 13. cxb6 {[%clk 0:00:15]}  Qxb6 {[%clk 0:02:33]} 14. Ne5 {[%clk 0:00:15]}  Nxd4 {[%clk 0:01:36]} 15. Ndf3 {[%clk 0:00:14]}  Nxe2+ {[%clk 0:01:31]} 16. Qxe2 {[%clk 0:00:15]}  Ng3 {[%clk 0:01:31]} 17. Qd2 {[%clk 0:00:10]}  Nxf1 {[%clk 0:01:29]} 18. Rxf1 {[%clk 0:00:11]}  Rac8 {[%clk 0:01:24]} 19. Bd4 {[%clk 0:00:09]}  Qa6 {[%clk 0:01:08]} 20. Qf4 {[%clk 0:00:09]}  f6 {[%clk 0:00:48]} 21. Ng4 {[%clk 0:00:08]}  e5 {[%clk 0:00:39]} 22. Nh6+ {[%clk 0:00:06]}  Bxh6 {[%clk 0:00:35]} 23. Qxh6 {[%clk 0:00:07]}  exd4 {[%clk 0:00:35]} 24. Nxd4 {[%clk 0:00:07]}  Qd3 {[%clk 0:00:28]} 25. Nf3 {[%clk 0:00:04]}  Rc2 {[%clk 0:00:14]} 26. Qh4 {[%clk 0:00:03]}  Qe4 {[%clk 0:00:12]} 27. Qg3 {[%clk 0:00:03]}  Rxa2 {[%clk 0:00:08]} 28. Qd6 {[%clk 0:00:03]}  Rb2 {[%clk 0:00:05]} 29. Re1 {[%clk 0:00:04]}  Rb1 {[%clk 0:00:05]} 30. Rxb1 {[%clk 0:00:03]}  Qxb1+ {[%clk 0:00:06]} 31. Kh2 {[%clk 0:00:03]}  Qxb3 {[%clk 0:00:06]} 32. Qg3 {[%clk 0:00:03]}  Qb7 {[%clk 0:00:06]} 33. Qh4 {[%clk 0:00:03]}  a5 {[%clk 0:00:05]} 34. g4 {[%clk 0:00:02]}  Be6 {[%clk 0:00:04]} 35. g5 {[%clk 0:00:02]}  fxg5 {[%clk 0:00:04]} 36. Nxg5 {[%clk 0:00:03]}  Rxf2+ {[%clk 0:00:04]} 37. Qxf2 {[%clk 0:00:00]}  Qc7+ {[%clk 0:00:04]} 0-1


[Site "https://www.chess.com"]

[Event "Titled Tuesday Blitz October 31 Early 2023"]
[White "Thomas, Anysia"]
[Black "vishwa_vijeta"]
[WhiteFideId "670472"]
[WhiteElo "2236"]
[BlackElo "2475"]
[Result "0-1"]
[Round "9"]
[TimeControl "180+1"]
[Date "2023.10.31"]
[WhiteClock "0:00:00"]
[BlackClock "0:01:01"]
[Board "125"]

1. d4 {[%clk 0:02:57]}  Nf6 {[%clk 0:02:59]} 2. c4 {[%clk 0:02:58]}  g6 {[%clk 0:02:59]} 3. Nc3 {[%clk 0:02:58]}  d5 {[%clk 0:03:00]} 4. cxd5 {[%clk 0:02:59]}  Nxd5 {[%clk 0:03:00]} 5. e4 {[%clk 0:03:00]}  Nxc3 {[%clk 0:02:59]} 6. bxc3 {[%clk 0:03:00]}  Bg7 {[%clk 0:03:00]} 7. Be3 {[%clk 0:03:01]}  c5 {[%clk 0:02:57]} 8. Nf3 {[%clk 0:03:02]}  O-O {[%clk 0:02:57]} 9. Be2 {[%clk 0:03:01]}  Nc6 {[%clk 0:02:57]} 10. O-O {[%clk 0:03:01]}  Bg4 {[%clk 0:02:57]} 11. e5 {[%clk 0:02:38]}  Qa5 {[%clk 0:02:55]} 12. Qb3 {[%clk 0:02:29]}  Rad8 {[%clk 0:02:46]} 13. Rfd1 {[%clk 0:01:35]}  b6 {[%clk 0:02:38]} 14. h3 {[%clk 0:01:34]}  cxd4 {[%clk 0:02:32]} 15. cxd4 {[%clk 0:01:30]}  Be6 {[%clk 0:02:30]} 16. Bc4 {[%clk 0:01:22]}  Bxc4 {[%clk 0:02:07]} 17. Qxc4 {[%clk 0:01:23]}  Rc8 {[%clk 0:02:06]} 18. Rac1 {[%clk 0:01:21]}  h6 {[%clk 0:01:54]} 19. e6 {[%clk 0:00:32]}  Nxd4 {[%clk 0:01:27]} 20. exf7+ {[%clk 0:00:14]}  Kh7 {[%clk 0:01:26]} 21. Qxc8 {[%clk 0:00:13]}  Nxf3+ {[%clk 0:01:26]} 22. gxf3 {[%clk 0:00:14]}  Rxc8 {[%clk 0:01:26]} 23. Rxc8 {[%clk 0:00:15]}  Qf5 {[%clk 0:01:26]} 24. Rc7 {[%clk 0:00:05]}  Qxf7 {[%clk 0:01:26]} 25. Rdd7 {[%clk 0:00:05]}  Bf6 {[%clk 0:01:27]} 26. Bf4 {[%clk 0:00:05]}  Qxa2 {[%clk 0:01:23]} 27. Bd6 {[%clk 0:00:02]}  Kg8 {[%clk 0:01:03]} 28. Bxe7 {[%clk 0:00:01]}  Be5 {[%clk 0:01:02]} 29. Kg2 {[%clk 0:00:01]}  Bxc7 {[%clk 0:01:02]} 30. Rxc7 {[%clk 0:00:00]}  Kf7 {[%clk 0:01:01]} 0-1


[Site "https://www.chess.com"]

[Event "Titled Tuesday Blitz October 31 Early 2023"]
[White "Seletsky, Grigory"]
[Black "Rodriguez Dominguez, Melissa"]
[WhiteFideId "14112191"]
[BlackFideId "3517560"]
[WhiteElo "2474"]
[BlackElo "2196"]
[Result "0-1"]
[Round "9"]
[TimeControl "180+1"]
[Date "2023.10.31"]
[WhiteClock "0:00:06"]
[BlackClock "0:00:12"]
[Board "126"]

1. e4 {[%clk 0:02:58]}  c5 {[%clk 0:02:58]} 2. Nc3 {[%clk 0:02:58]}  a6 {[%clk 0:02:56]} 3. d3 {[%clk 0:02:56]}  b5 {[%clk 0:02:55]} 4. f4 {[%clk 0:02:56]}  Bb7 {[%clk 0:02:55]} 5. Nf3 {[%clk 0:02:56]}  e6 {[%clk 0:02:54]} 6. g3 {[%clk 0:02:57]}  d5 {[%clk 0:02:53]} 7. Qe2 {[%clk 0:02:55]}  b4 {[%clk 0:02:46]} 8. Nd1 {[%clk 0:02:53]}  dxe4 {[%clk 0:02:46]} 9. dxe4 {[%clk 0:02:53]}  Nf6 {[%clk 0:02:46]} 10. Nf2 {[%clk 0:02:53]}  a5 {[%clk 0:02:31]} 11. Bg2 {[%clk 0:02:48]}  Ba6 {[%clk 0:02:30]} 12. Qe3 {[%clk 0:02:46]}  Be7 {[%clk 0:02:28]} 13. b3 {[%clk 0:02:36]}  O-O {[%clk 0:02:22]} 14. Bb2 {[%clk 0:02:36]}  Nbd7 {[%clk 0:01:58]} 15. O-O-O {[%clk 0:02:34]}  Qc7 {[%clk 0:01:53]} 16. Kb1 {[%clk 0:02:32]}  c4 {[%clk 0:01:52]} 17. Bd4 {[%clk 0:02:30]}  c3 {[%clk 0:01:45]} 18. g4 {[%clk 0:02:26]}  a4 {[%clk 0:01:44]} 19. g5 {[%clk 0:02:26]}  Nh5 {[%clk 0:01:19]} 20. e5 {[%clk 0:02:21]}  axb3 {[%clk 0:01:06]} 21. Ne1 {[%clk 0:02:00]}  Qa5 {[%clk 0:00:36]} 22. cxb3 {[%clk 0:01:16]}  Bd3+ {[%clk 0:00:32]} 23. Nfxd3 {[%clk 0:01:10]}  Qxa2+ {[%clk 0:00:31]} 24. Kc1 {[%clk 0:01:09]}  Qa1+ {[%clk 0:00:30]} 25. Kc2 {[%clk 0:01:08]}  Ra2+ {[%clk 0:00:30]} 26. Nb2 {[%clk 0:01:09]}  Rxb2+ {[%clk 0:00:26]} 27. Kd3 {[%clk 0:01:06]}  Qxd1+ {[%clk 0:00:26]} 28. Ke4 {[%clk 0:00:59]}  Re2 {[%clk 0:00:25]} 29. Bf3 {[%clk 0:00:44]}  Qb1+ {[%clk 0:00:18]} 30. Nd3 {[%clk 0:00:42]}  Rxe3+ {[%clk 0:00:17]} 31. Kxe3 {[%clk 0:00:42]}  Qxb3 {[%clk 0:00:17]} 32. Bxh5 {[%clk 0:00:40]}  c2 {[%clk 0:00:16]} 33. Ra1 {[%clk 0:00:32]}  Nc5 {[%clk 0:00:15]} 34. Bxc5 {[%clk 0:00:30]}  Bxc5+ {[%clk 0:00:16]} 35. Ke2 {[%clk 0:00:30]}  Qc4 {[%clk 0:00:16]} 36. Ra5 {[%clk 0:00:24]}  Bd4 {[%clk 0:00:15]} 37. Kd2 {[%clk 0:00:12]}  Qc3+ {[%clk 0:00:14]} 38. Ke2 {[%clk 0:00:12]}  b3 {[%clk 0:00:13]} 39. Rb5 {[%clk 0:00:08]}  b2 {[%clk 0:00:12]} 40. Nc1 {[%clk 0:00:06]}  bxc1=Q {[%clk 0:00:12]} 0-1


[Site "https://www.chess.com"]

[Event "Titled Tuesday Blitz October 31 Early 2023"]
[White "Aash20"]
[Black "Mr_November18"]
[WhiteElo "2457"]
[BlackElo "2137"]
[Result "1-0"]
[Round "9"]
[TimeControl "180+1"]
[Date "2023.10.31"]
[WhiteClock "0:02:29"]
[BlackClock "0:01:18"]
[Board "127"]

1. e4 {[%clk 0:03:00]}  c5 {[%clk 0:02:50]} 2. Nf3 {[%clk 0:02:59]}  d6 {[%clk 0:02:49]} 3. d4 {[%clk 0:02:58]}  cxd4 {[%clk 0:02:47]} 4. Qxd4 {[%clk 0:02:59]}  Nf6 {[%clk 0:02:47]} 5. e5 {[%clk 0:02:58]}  Nc6 {[%clk 0:02:39]} 6. Bb5 {[%clk 0:02:57]}  dxe5 {[%clk 0:02:33]} 7. Qxd8+ {[%clk 0:02:56]}  Kxd8 {[%clk 0:02:33]} 8. Bxc6 {[%clk 0:02:56]}  bxc6 {[%clk 0:02:32]} 9. Nxe5 {[%clk 0:02:57]}  Be6 {[%clk 0:02:32]} 10. Nxc6+ {[%clk 0:02:56]}  Kc7 {[%clk 0:02:32]} 11. Nd4 {[%clk 0:02:57]}  Bd5 {[%clk 0:02:31]} 12. O-O {[%clk 0:02:55]}  e5 {[%clk 0:02:31]} 13. Nb3 {[%clk 0:02:53]}  a5 {[%clk 0:02:29]} 14. Nc3 {[%clk 0:02:52]}  a4 {[%clk 0:02:22]} 15. Nd2 {[%clk 0:02:49]}  Be6 {[%clk 0:02:16]} 16. Nf3 {[%clk 0:02:47]}  e4 {[%clk 0:02:13]} 17. Ng5 {[%clk 0:02:45]}  Bc4 {[%clk 0:02:07]} 18. Re1 {[%clk 0:02:41]}  Bb4 {[%clk 0:01:56]} 19. Ngxe4 {[%clk 0:02:41]}  Rhe8 {[%clk 0:01:55]} 20. Bf4+ {[%clk 0:02:36]}  Kc6 {[%clk 0:01:46]} 21. Nxf6 {[%clk 0:02:34]}  Rxe1+ {[%clk 0:01:45]} 22. Rxe1 {[%clk 0:02:33]}  gxf6 {[%clk 0:01:46]} 23. Re4 {[%clk 0:02:31]}  Kc5 {[%clk 0:01:18]} 24. Be3+ {[%clk 0:02:29]} 1-0


[Site "https://www.chess.com"]